{"text_format":"3","workbook":"xlsx","n_sheets":4,"sheets":["Start","Udgifter","Indtægter","Oversigt"],"not_rendered":{"charts":1,"defined_names":2},"read":"whole","date_system":"1900"}

{"sheet":"Start","index":0,"n_rows":8,"n_cols":2,"rows_kept":8}
[null,"OM DENNE SKABELON"]
[null,"Brug projektmappen Budget for begivenhed til at holde styr på udgifter og indtægter i forbindelse med en begivenhed."]
[null,"Udfyld med begivenhedens navn, og angiv oplysninger i tabellerne i regnearkene Udgifter og Indtægter."]
[null,"Udgifter Total og Indtægt Total beregnes automatisk."]
[null,"Oversigt over fortjeneste/tab opdateres automatisk i regnearket Oversigt."]
[null,"Bemærk! "]
[null,"Der er yderligere vejledning at finde i kolonne A i hvert regneark. Denne tekst er skjult med vilje. Du kan fjerne tekst ved at markere kolonne A og derefter vælge Slet. For ikke længere at skjule tekst skal du markere kolonne A og derefter ændre skriftfarven."]
[null,"Hvis du vil vide mere om tabeller, skal du trykke på Skift og derefter F10, mens du er i en tabel, vælge indstillingen Tabel og derefter vælge Alternativ tekst."]

{"sheet":"Udgifter","index":1,"n_rows":33,"n_cols":8,"rows_kept":33,"merged":[[0,5,0,7],[1,1,1,7],[2,6,2,7]]}
["Angiv de anslået og faktisk udgifter for hver kategori i de respektive tabeller i dette regneark. Samlede udgifter beregnes automatisk. I cellerne i denne kolonne vises en udførlig vejledning i, hvordan man bruger dette regneark. Pil ned for at starte."]
["Angiv navn på begivenhed i cellen til højre for at tilpasse titlen på dette og andre regneark.","Begivenhedsbudget for \nNavn på begivenhed"]
["\"Udgifter\" står i celle G3.",{"$nulls":5}," Udgifter"]
["\"Anslået\" står i celle G4 og \"Faktisk\" i celle H4.",{"$nulls":5},"Anslået","Faktisk"]
["\"Udgifter Total\" er i cellen til højre. Anslået udgifter Total beregnes automatisk i celle G5. Faktisk udgifter Total og en datalinje, der illustrerer de faktiske udgifter Total, opdateres automatisk i celle H5. Den næste vejledning er i celle A7.","Udgifter Total",{"$nulls":4},{"$f":"SUM(C12,C20,C26,C33,G12,G20,G25)","v":{"v":1145,"d":"kr. 1,145.00"}},{"$f":"SUM(D12,D20,D26,D33,H12,H20,H25)","v":{"v":395,"d":"kr. 395.00"}}]
[]
["Angiv Websted Udgifter i tabellen, der begynder i cellen til højre, og Forfriskninger Udgifter i tabellen, der begynder i celle F7. Den næste vejledning er i celle A14.","Lokalitet","Anslået","Faktisk",null,"Forfriskninger","Anslået","Faktisk"]
[null,"Leje af lokaler",{"v":500,"d":"kr. 500.00"},{"v":250,"d":"kr. 250.00"},null,"Mad"]
[null,"Personale på lokalitet",{"v":400,"d":"kr. 400.00"},{"v":50,"d":"kr. 50.00"},null,"Drikkevarer"]
[null,"Udstyr",{"$nulls":3},"Linned"]
[null,"Borde og stole",{"$nulls":3},"Personale og drikkepenge"]
[null,"Total",{"$f":"SUBTOTAL(109,WebstedUdgifter[Anslået])","v":{"v":900,"d":"kr. 900.00"}},{"$f":"SUBTOTAL(109,WebstedUdgifter[Faktisk])","v":{"v":300,"d":"kr. 300.00"}},null,"Total",{"$f":"SUBTOTAL(109,ForfriskningerUdgifter[Anslået])","v":{"v":0,"d":"kr. 0.00"}},{"$f":"SUBTOTAL(109,ForfriskningerUdgifter[Faktisk])","v":{"v":0,"d":"kr. 0.00"}}]
[]
["Angiv Dekorationer Udgifter i tabellen, der begynder i cellen til højre, og Program Udgifter i tabellen, der begynder i celle F14. Den næste vejledning er i celle A22.","Dekorationer","Anslået","Faktisk",null,"Program","Anslået","Faktisk"]
[null,"Blomster",{"v":200,"d":"kr. 200.00"},{"v":50,"d":"kr. 50.00"},null,"Optrædende"]
[null,"Stearinlys",{"$nulls":3},"Talere"]
[null,"Belysning",{"$nulls":3},"Rejse"]
[null,"Balloner",{"$nulls":3},"Hotel"]
[null,"Papirvarer",{"$nulls":3},"Andet"]
[null,"Total",{"$f":"SUBTOTAL(109,DekorationerUdgifter[Anslået])","v":{"v":200,"d":"kr. 200.00"}},{"$f":"SUBTOTAL(109,DekorationerUdgifter[Faktisk])","v":{"v":50,"d":"kr. 50.00"}},null,"Total",{"$f":"SUBTOTAL(109,ProgramUdgifter[Anslået])","v":{"v":0,"d":"kr. 0.00"}},{"$f":"SUBTOTAL(109,ProgramUdgifter[Faktisk])","v":{"v":0,"d":"kr. 0.00"}}]
[]
["Angiv Reklame Udgifter i tabellen, der begynder i cellen til højre, og Præmier Udgifter i tabellen, der begynder i celle F22. Den næste vejledning er i celle A28.","Reklame","Anslået","Faktisk",null,"Præmier","Anslået","Faktisk"]
[null,"Grafikarbejder",{"v":45,"d":"kr. 45.00"},{"v":45,"d":"kr. 45.00"},null,"Ordensbånd/mindeplader/trofæer"]
[null,"Fotokopiering/udskrivning",{"$nulls":3},"Gaver"]
[null,"Porto",{"$nulls":3},"Total",{"$f":"SUBTOTAL(109,PræmierUdgifter[Anslået])","v":{"v":0,"d":"kr. 0.00"}},{"$f":"SUBTOTAL(109,PræmierUdgifter[Faktisk])","v":{"v":0,"d":"kr. 0.00"}}]
[null,"Total",{"$f":"SUBTOTAL(109,ReklameUdgifter[Anslået])","v":{"v":45,"d":"kr. 45.00"}},{"$f":"SUBTOTAL(109,ReklameUdgifter[Faktisk])","v":{"v":45,"d":"kr. 45.00"}}]
[]
["Angiv Diverse Udgifter i tabellen, der begynder i cellen til højre.","Diverse","Anslået","Faktisk"]
[null,"Telefon"]
[null,"Transport"]
[null,"Kontorartikler"]
[null,"Faxtjenester"]
[null,"Total",{"$f":"SUBTOTAL(109,DiverseUdgifter[Anslået])","v":{"v":0,"d":"kr. 0.00"}},{"$f":"SUBTOTAL(109,DiverseUdgifter[Faktisk])","v":{"v":0,"d":"kr. 0.00"}}]

{"sheet":"Indtægter","index":2,"n_rows":30,"n_cols":7,"rows_kept":30,"merged":[[1,1,1,6],[2,5,2,6]]}
["Angiv de anslået og faktisk indtægter for hver kategori i de respektive tabeller i dette regneark. Den samlede indtægt beregnes automatisk. I cellerne i denne kolonne vises en udførlig vejledning i, hvordan man bruger dette regneark. Pil ned for at starte."]
["Navn på begivenhed opdateres automatisk i cellen til højre.",{"$f":"Udgifter!B2","v":"Begivenhedsbudget for \nNavn på begivenhed"}]
["\"Indtægter\" står i celle F3.",{"$nulls":4}," Indtægter"]
["\"Anslået\" står i celle F4 og \"Faktisk\" i celle G4.",{"$nulls":4},"Anslået","Faktisk"]
["\"Indtægt Total\" står i cellen til højre. Anslået i alt beregnes automatisk i celle F5. Faktiske i alt og en datalinje, der illustrerer de faktiske i alt, opdateres automatisk i celle G5.","Indtægter Total",{"$nulls":3},{"$f":"SUM(Entreindtægter[[#Totals],[Anslået i alt]],ReklamerIProgrammet[[#Totals],[Anslået i alt]],UdstillereOgLeverandører[[#Totals],[Anslået i alt]],SalgAfVarer[[#Totals],[Anslået i alt]])","v":{"v":1936,"d":"kr. 1,936.00"}},{"$f":"SUM(Entreindtægter[[#Totals],[Faktisk i alt]],ReklamerIProgrammet[[#Totals],[Faktisk i alt]],UdstillereOgLeverandører[[#Totals],[Faktisk i alt]],SalgAfVarer[[#Totals],[Faktisk i alt]])","v":{"v":1831,"d":"kr. 1,831.00"}}]
["\"Entreindtægter\" findes i cellen til højre.","Entreindtægter"]
["Angiv det anslået og faktisk antal deltagere med billetpriser i tabellen, der begynder i cellen til højre. Anslået og faktisk entreindtægter beregnes automatisk. Den næste vejledning er i celle A12.","Anslået","Faktisk","Type","Pris","Anslået i alt","Faktisk i alt"]
[null,300,278,"Voksne @",{"v":5,"d":"kr. 5.00"},{"$f":"B8*E8","v":{"v":1500,"d":"kr. 1,500.00"}},{"$f":"C8*E8","v":{"v":1390,"d":"kr. 1,390.00"}}]
[null,197,195,"Børn @",{"v":2,"d":"kr. 2.00"},{"$f":"B9*E9","v":{"v":394,"d":"kr. 394.00"}},{"$f":"C9*E9","v":{"v":390,"d":"kr. 390.00"}}]
[null,42,51,"Andre @",{"v":1,"d":"kr. 1.00"},{"v":42,"d":"kr. 42.00"},{"v":51,"d":"kr. 51.00"}]
[null," ",{"$nulls":3},{"$f":"SUBTOTAL(109,Entreindtægter[Anslået i alt])","v":{"v":1936,"d":"kr. 1,936.00"}},{"$f":"SUBTOTAL(109,Entreindtægter[Faktisk i alt])","v":{"v":1831,"d":"kr. 1,831.00"}}]
["\"Annoncer i programmet\" er i cellen til højre.","Annoncer i programmet"]
["Angiv anslået og faktisk antal annoncer i programmet og annoncepriser i tabellen, der begynder i cellen til højre. Anslået og faktisk indtægter fra annoncer beregnes automatisk. Den næste vejledning er i celle A18.","Anslået","Faktisk","Type","Pris","Anslået i alt","Faktisk i alt"]
[{"$nulls":3},"Omslag @",null,{"$f":"B14*E14","v":{"v":0,"d":"kr. 0.00"}},{"$f":"C14*E14","v":{"v":0,"d":"kr. 0.00"}}]
[{"$nulls":3},"Halve sider @",null,{"$f":"B15*E15","v":{"v":0,"d":"kr. 0.00"}},{"$f":"C15*E15","v":{"v":0,"d":"kr. 0.00"}}]
[{"$nulls":3},"Kvarte sider @",null,{"v":0,"d":"kr. 0.00"},{"v":0,"d":"kr. 0.00"}]
[null," ",{"$nulls":3},{"$f":"SUBTOTAL(109,ReklamerIProgrammet[Anslået i alt])","v":{"v":0,"d":"kr. 0.00"}},{"$f":"SUBTOTAL(109,ReklamerIProgrammet[Faktisk i alt])","v":{"v":0,"d":"kr. 0.00"}}]
["Udstillere eller leverandører er i cellen til højre.","Udstillere/leverandører"]
["Angiv det anslået og faktisk antal udstillere og leverandører samt priser for standpladser i tabellen, der begynder i cellen til højre. Anslået og faktisk indtægter beregnes automatisk. Den næste vejledning er i celle A24.","Anslået","Faktisk","Type","Pris","Anslået i alt","Faktisk i alt"]
[{"$nulls":3},"Store standpladser @",null,{"$f":"B20*E20","v":{"v":0,"d":"kr. 0.00"}},{"$f":"C20*E20","v":{"v":0,"d":"kr. 0.00"}}]
[{"$nulls":3},"Mellem standpladser @",null,{"$f":"B21*E21","v":{"v":0,"d":"kr. 0.00"}},{"$f":"C21*E21","v":{"v":0,"d":"kr. 0.00"}}]
[{"$nulls":3},"Små standpladser @",null,{"v":0,"d":"kr. 0.00"},{"v":0,"d":"kr. 0.00"}]
[null," ",{"$nulls":3},{"$f":"SUBTOTAL(109,UdstillereOgLeverandører[Anslået i alt])","v":{"v":0,"d":"kr. 0.00"}},{"$f":"SUBTOTAL(109,UdstillereOgLeverandører[Faktisk i alt])","v":{"v":0,"d":"kr. 0.00"}}]
["\"Salg af varer\" er i cellen til højre.","Salg af varer"]
["Angiv anslået og faktisk antal solgte varer samt varepriser i tabellen, der begynder i cellen til højre. Anslået og faktisk indtægter beregnes automatisk.","Anslået","Faktisk","Type","Pris","Anslået i alt","Faktisk i alt"]
[{"$nulls":3},"Varer @",null,{"$f":"B26*E26","v":{"v":0,"d":"kr. 0.00"}},{"$f":"C26*E26","v":{"v":0,"d":"kr. 0.00"}}]
[{"$nulls":3},"Varer @",null,{"$f":"B27*E27","v":{"v":0,"d":"kr. 0.00"}},{"$f":"C27*E27","v":{"v":0,"d":"kr. 0.00"}}]
[{"$nulls":3},"Varer @",null,{"v":0,"d":"kr. 0.00"},{"v":0,"d":"kr. 0.00"}]
[{"$nulls":3},"Varer @",null,{"v":0,"d":"kr. 0.00"},{"v":0,"d":"kr. 0.00"}]
[null," ",{"$nulls":3},{"$f":"SUBTOTAL(109,SalgAfVarer[Anslået i alt])","v":{"v":0,"d":"kr. 0.00"}},{"$f":"SUBTOTAL(109,SalgAfVarer[Faktisk i alt])","v":{"v":0,"d":"kr. 0.00"}}]

{"sheet":"Oversigt","index":3,"n_rows":9,"n_cols":4,"rows_kept":9,"merged":[[1,1,1,3],[2,2,2,3],[8,1,8,4],[9,1,9,3]]}
["Oversigt over fortjeneste/tab, der viser indtægter og udgifter Total, opdateres automatisk i dette regneark. I cellerne i denne kolonne vises en udførlig vejledning i, hvordan man bruger dette regneark. Pil ned for at starte."]
["Navn på begivenhed opdateres automatisk i cellen til højre.",{"$f":"Udgifter!B2","v":"Begivenhedsbudget for \nNavn på begivenhed"}]
["\"Oversigt over fortjeneste/tab\" findes i celle C3. Den næste vejledning er i celle A5.",null,"Oversigt over fortjeneste/tab"]
[]
["Tabellen Total, der begynder i cellen til højre, opdateres automatisk. Den næste vejledning er i celle A9.","Total","Anslået","Faktisk"]
[null,"Indtægt Total",{"$f":"Indtægter!F5","v":{"v":1936,"d":"kr. 1,936.00"}},{"$f":"Indtægter!G5","v":{"v":1831,"d":"kr. 1,831.00"}}]
[null,"Udgifter Total",{"$f":"Udgifter!G5","v":{"v":1145,"d":"kr. 1,145.00"}},{"$f":"Udgifter!H5","v":{"v":395,"d":"kr. 395.00"}}]
[null,"Fortjeneste (eller tab) Total",{"$f":"C6-C7","v":{"v":791,"d":"kr. 791.00"}},{"$f":"D6-D7","v":{"v":1436,"d":"kr. 1,436.00"}}]
["Grupperet søjlediagram, der viser anslået og faktisk indtægt Total og udgifter Total i forhold til hinanden i cellen til højre.","Grupperet søjlediagram, der viser anslået og faktisk indtægt Total og udgifter Total i forhold til hinanden i denne celle."]